bitfinex/quotes_ETHUSD_20230105
["timestamp","ask_amount","ask_price","bid_price","bid_amount"]
[1672882097481,3.86891599,1255.6,1255.4,14.0646833]
[1672882097628,3.86891599,1255.6,1255.4,18.05383281]
[1672882097629,3.80291599,1255.6,1255.4,18.05383281]
[1672882100923,2.00180437,1255.6,1255.5,8.0]
[1672882101135,2.00180437,1255.6,1255.5,39.34258281]
[1672882101136,0.10580437,1255.6,1255.5,39.34258281]
[1672882103834,0.10780437,1255.6,1255.5,39.34058281]
[1672882104120,0.10580437,1255.6,1255.5,39.34258281]
[1672882105993,0.10580437,1255.6,1255.5,31.37763281]
[1672882106140,0.10580437,1255.6,1255.5,23.37763281]
[1672882106345,0.10780437,1255.6,1255.5,23.37563281]
[1672882106595,0.10580437,1255.6,1255.5,23.37763281]
[1672882107352,0.10580437,1255.6,1255.5,23.41268281]
[1672882108242,0.10580437,1255.6,1255.5,31.37763281]
[1672882108698,0.10580437,1255.6,1255.5,28.37763281]
[1672882108873,0.10580437,1255.6,1255.5,27.98373281]
[1672882109294,0.10580437,1255.6,1255.5,20.01878281]
[1672882110509,0.10580437,1255.6,1255.5,12.05383281]
[1672882111851,0.10780437,1255.6,1255.5,12.05183281]
[1672882112084,0.10580437,1255.6,1255.5,12.05383281]
[1672882114603,11.87611437,1255.6,1255.5,0.0646833]
[1672882114818,21.89853499,1255.6,1255.4,35.0646833]
[1672882115007,1.911,1255.5,1255.4,35.0646833]
[1672882118183,9.87595,1255.5,1255.4,35.0646833]
[1672882118335,9.94195,1255.5,1255.4,35.0646833]
[1672882118548,13.9561985,1255.5,1255.4,35.0646833]
[1672882118775,5.9912485,1255.5,1255.4,35.0646833]
[1672882122263,5.9912485,1255.5,1255.4,0.0646833]
[1672882122494,1.977,1255.5,1255.3,29.9967833]
[1672882122699,1.911,1255.5,1255.3,68.98593281]
[1672882123275,14.33791499,1255.6,1255.3,68.98593281]
[1672882123645,12.42791499,1255.6,1255.3,68.98593281]
[1672882123873,14.33891499,1255.6,1255.3,68.98593281]
[1672882128589,12.34680437,1255.6,1255.3,76.95215281]
[1672882129158,12.34680437,1255.6,1255.3,68.98593281]
[1672882129370,12.34680437,1255.6,1255.3,54.98593281]
[1672882130794,12.34680437,1255.6,1255.3,68.98593281]
[1672882132333,10.43580437,1255.6,1255.5,23.89485]
[1672882132535,10.43580437,1255.6,1255.5,23.9595333]
[1672882133186,0.17180437,1255.6,1255.5,27.94868281]
[1672882133376,0.10580437,1255.6,1255.5,12.01878281]
[1672882134329,0.10580437,1255.6,1255.5,19.98373281]
[1672882138408,0.10312874,1255.6,1255.5,19.98373281]
[1672882141252,0.10312874,1255.6,1255.5,12.01878281]
[1672882142086,0.10312874,1255.6,1255.5,4.05383281]
[1672882142296,0.10312874,1255.6,1255.5,3.98914951]
[1672882145344,0.10312874,1255.6,1255.5,11.95409951]
[1672882145558,0.10312874,1255.6,1255.5,12.01878281]
[1672882149991,0.10312874,1255.6,1255.5,4.05383281]
[1672882150340,0.10312874,1255.6,1255.5,3.98914951]
[1672882162435,0.10312874,1255.6,1255.5,3.98555871]
[1672882170618,9.76243874,1255.6,1255.4,0.0646833]
[1672882170864,14.02417499,1255.6,1255.4,3.98914951]
[1672882172842,6.05986499,1255.6,1255.4,3.98914951]
[1672882184086,6.05986499,1255.6,1255.4,3.98639058]
[1672882190272,4.36486499,1255.6,1255.4,3.98639058]
[1672882190477,4.29886499,1255.6,1255.4,3.98639058]
[1672882190734,12.26320499,1255.6,1255.4,3.98639058]
[1672882190948,12.32920499,1255.6,1255.4,3.98639058]
[1672882191135,4.36486499,1255.6,1255.4,3.98639058]
[1672882191343,4.29886499,1255.6,1255.4,3.98639058]
[1672882192109,0.05312874,1255.6,1255.4,3.98639058]
[1672882194061,8.01750874,1255.6,1255.4,3.98639058]
[1672882194272,8.08350874,1255.6,1255.4,3.98639058]
[1672882194518,16.04788874,1255.6,1255.4,3.98639058]
[1672882194707,24.01226874,1255.6,1255.4,3.98639058]
[1672882194940,1.908,1255.5,1255.3,14.0646833]
[1672882195147,13.87317,1255.5,1255.3,18.05383281]
[1672882195327,13.93917,1255.5,1255.3,18.05383281]
[1672882196211,9.93917,1255.5,1255.3,18.05383281]
[1672882196805,13.93917,1255.5,1255.3,18.05383281]
[1672882197059,18.11917619,1255.5,1255.3,18.05383281]
[1672882197394,18.11917619,1255.5,1255.3,14.0646833]
[1672882197707,29.80774,1255.4,1255.3,0.0646833]
[1672882197943,9.94258,1255.4,1255.2,30.3546833]
[1672882198065,13.89761081,1255.4,1255.2,0.0646833]
[1672882198441,13.89761081,1255.4,1255.1,30.0321133]
[1672882198612,5.93203081,1255.4,1255.1,34.02126281]
[1672882198818,1.977,1255.4,1255.1,41.98875281]
[1672882199019,1.911,1255.4,1255.1,49.95624281]
[1672882208542,1.911,1255.4,1255.1,84.95624281]
[1672882209458,12.1204,1255.4,1255.1,84.95624281]
[1672882209731,12.1864,1255.4,1255.1,84.95624281]
[1672882209878,12.1864,1255.4,1255.1,92.93040652]
[1672882214145,12.1864,1255.4,1255.1,70.95624281]
[1672882215511,12.1864,1255.4,1255.1,84.95624281]
[1672882218095,10.2754,1255.4,1255.2,4.0]
[1672882218308,10.2754,1255.4,1255.3,15.93244]
[1672882218520,10.2754,1255.4,1255.3,15.9971233]
[1672882219084,10.2731763,1255.4,1255.3,15.9971233]
[1672882220091,10.2731763,1255.4,1255.3,23.9633433]
[1672882224546,10.2731763,1255.4,1255.3,15.9971233]
[1672882224698,10.2731763,1255.4,1255.3,8.0309033]
[1672882228918,10.2731763,1255.4,1255.3,0.0646833]
[1672882229134,10.2731763,1255.4,1255.2,23.9640933]
[1672882229322,10.2731763,1255.4,1255.2,35.92740652]
[1672882236254,18.2388263,1255.4,1255.2,0.0646833]
[1672882236520,28.1157463,1255.4,1255.1,57.0646833]
[1672882236730,28.1157463,1255.4,1255.1,61.05383281]
[1672882237048,33.38993312,1255.4,1255.1,61.05383281]
[1672882239132,10.2731763,1255.4,1255.1,84.95629281]
[1672882242348,10.2731763,1255.4,1255.3,15.92991877]
[1672882242652,10.2731763,1255.4,1255.3,15.99460207]
[1672882245812,10.2731763,1255.4,1255.3,15.99260207]
[1672882245999,10.2731763,1255.4,1255.3,15.99460207]
[1672882247753,10.2731763,1255.4,1255.3,8.02838207]
[1672882248173,10.2731763,1255.4,1255.3,0.0646833]
[1672882248422,10.2731763,1255.4,1255.2,19.98680281]
[1672882249360,10.2731763,1255.4,1255.2,27.95365281]
[1672882249595,10.2731763,1255.4,1255.2,35.92781652]
[1672882250225,10.2731763,1255.4,1255.2,35.92581652]
[1672882250396,10.2731763,1255.4,1255.2,35.92781652]
[1672882253378,10.26944702,1255.4,1255.2,35.92781652]
[1672882261860,10.26944702,1255.4,1255.2,27.96096652]
[1672882265737,10.26944702,1255.4,1255.2,19.99444652]
[1672882266367,10.26944702,1255.4,1255.2,12.02028281]
[1672882271687,10.26944702,1255.4,1255.2,19.98713281]
[1672882271837,10.26944702,1255.4,1255.3,27.88780951]
[1672882271838,0.066,1255.4,1255.3,27.88780951]
[1672882272265,11.2297,1255.5,1255.3,27.95249281]
[1672882272558,11.2297,1255.5,1255.3,31.58384709]
[1672882273344,11.2297,1255.5,1255.3,31.58172215]
[1672882274827,0.066,1255.5,1255.4,3.98914951]
[1672882275036,10.84382874,1255.6,1255.4,3.98914951]
[1672882275256,10.84382874,1255.6,1255.5,3.98914951]
[1672882275494,10.84382874,1255.6,1255.5,27.88399951]
[1672882275650,10.84382874,1255.6,1255.5,27.94868281]
[1672882275862,0.11912874,1255.6,1255.5,31.94010909]
[1672882276089,0.05312874,1255.6,1255.5,31.94010909]
[1672882282645,0.05312874,1255.6,1255.5,31.95214569]
[1672882286678,0.05312874,1255.6,1255.5,45.95214569]
[1672882288965,0.05312874,1255.6,1255.5,56.95214569]
[1672882289181,0.08123182,1255.7,1255.6,4.0]
[1672882289396,0.08123182,1255.7,1255.6,42.05593287]
[1672882289605,0.08123182,1255.7,1255.6,42.12061617]
[1672882294370,0.08123182,1255.7,1255.6,77.12061617]
[1672882295686,0.08123182,1255.7,1255.6,76.60791617]
[1672882296567,0.08122613,1255.8,1255.6,91.00520843]
[1672882296782,0.08122613,1255.8,1255.7,53.31358951]
[1672882297091,0.08122613,1255.8,1255.7,55.53100682]
[1672882298797,6.13e-06,1255.8,1255.7,55.53100682]
[1672882299159,6.13e-06,1255.8,1255.7,63.91400682]
[1672882299370,6.13e-06,1255.8,1255.7,70.34698908]
[1672882299576,6.13e-06,1255.8,1255.7,70.82718582]
[1672882300209,6.13e-06,1255.8,1255.7,70.83922051]
[1672882300421,0.14127964,1256.0,1255.7,70.83922051]
[1672882300627,0.14127964,1256.0,1255.9,25.98914951]
[1672882300899,7.964e-05,1256.0,1255.9,71.39650935]
[1672882301297,7.964e-05,1256.0,1255.9,64.96352709]
[1672882302614,7.964e-05,1256.0,1255.9,72.92593709]
[1672882302764,0.13185297,1256.1,1256.0,27.88534]
[1672882302971,0.13185297,1256.1,1256.0,35.43937281]
[1672882303182,0.13185297,1256.1,1256.0,39.43079909]
[1672882303396,0.13185297,1256.1,1256.0,31.46679909]
[1672882303885,0.13120056,1256.3,1256.1,12.383]
[1672882304029,0.13120056,1256.3,1256.2,60.83118951]
[1672882304243,0.13120056,1256.3,1256.2,52.93536281]
[1672882304488,0.13120056,1256.3,1256.2,58.66721909]
[1672882305568,0.13120056,1256.3,1256.2,42.74619909]
[1672882306209,0.13120056,1256.3,1256.2,37.01434281]
[1672882306408,0.13120056,1256.3,1256.2,29.05383281]
[1672882306788,0.13120056,1256.3,1256.2,37.01434281]
[1672882306993,0.13120056,1256.3,1256.2,44.97485281]
[1672882308978,0.13120056,1256.3,1256.2,52.93536281]
[1672882309187,0.13120056,1256.3,1256.2,60.90952652]
[1672882311390,5.6e-07,1256.3,1256.2,60.90952652]
[1672882312722,5.6e-07,1256.3,1256.2,61.26092652]
[1672882315396,5.6e-07,1256.3,1256.2,96.26092652]
[1672882317440,5.6e-07,1256.3,1256.2,95.90952652]
[1672882321327,5.6e-07,1256.3,1256.2,87.93536281]
[1672882325475,5.6e-07,1256.3,1256.2,52.93536281]
[1672882325909,5.6e-07,1256.3,1256.2,87.93536281]
[1672882326315,5.6e-07,1256.3,1256.2,88.28086281]
[1672882327364,5.6e-07,1256.3,1256.2,80.32035281]
[1672882327572,5.6e-07,1256.3,1256.2,79.97485281]
[1672882328634,5.6e-07,1256.3,1256.2,87.93536281]
[1672882332679,5.6e-07,1256.3,1256.2,72.01434281]
[1672882333274,5.6e-07,1256.3,1256.2,79.97485281]
[1672882333468,5.6e-07,1256.3,1256.2,87.93536281]
[1672882333883,5.6e-07,1256.3,1256.2,95.90952652]
[1672882335982,0.17026044,1256.4,1256.3,1.697]
[1672882336196,0.17026044,1256.4,1256.3,20.85735905]
[1672882336197,6.044e-05,1256.4,1256.3,20.85735905]
[1672882336412,6.044e-05,1256.4,1256.3,40.55199909]
[1672882336742,0.13031233,1256.5,1256.4,12.383]
[1672882336957,0.13031233,1256.5,1256.4,57.74081281]
[1672882337193,0.17026044,1256.6,1256.4,69.41331909]
[1672882337376,0.7271256,1256.8,1256.5,26.42045905]
[1672882337714,0.17026044,1256.9,1256.7,34.37214951]
[1672882337881,0.17026044,1256.9,1256.8,31.85927951]
[1672882338095,0.17026044,1256.9,1256.8,26.96725281]
[1672882338345,0.066,1257.2,1256.9,4.0]
[1672882338534,0.7271256,1257.4,1257.1,25.98914951]
[1672882338754,0.7271256,1257.4,1257.2,11.94332951]
[1672882338935,0.7271256,1257.4,1257.3,3.98914951]
[1672882339520,0.7291256,1257.4,1257.3,25.95471888]
[1672882339677,0.7271256,1257.4,1257.3,34.01940218]
[1672882340252,0.7271256,1257.4,1257.3,33.81926214]
[1672882340468,0.7271256,1257.4,1257.3,25.85369277]
[1672882340836,0.7291256,1257.4,1257.3,25.85169277]
[1672882341152,0.7271256,1257.4,1257.3,25.85369277]
[1672882343197,0.7271256,1257.4,1257.3,41.76079277]
[1672882344158,0.7271256,1257.4,1257.3,33.80724277]
[1672882346353,0.7271256,1257.4,1257.3,25.85369277]
[1672882347040,10.5870356,1257.4,1257.3,17.85369277]
[1672882347251,11.71173916,1257.4,1257.3,17.85369277]
[1672882347604,3.75882916,1257.4,1257.3,17.85369277]
[1672882347926,3.69282916,1257.4,1257.3,17.85369277]
[1672882348559,0.7271256,1257.4,1257.3,41.71434277]
[1672882349290,0.7271256,1257.4,1257.3,33.76079277]
[1672882349498,0.7271256,1257.4,1257.3,25.80724277]
[1672882349688,0.7271256,1257.4,1257.3,33.76079277]
[1672882350087,0.7271256,1257.4,1257.3,17.85369277]
[1672882350727,0.7271256,1257.4,1257.3,25.80724277]
[1672882352067,0.7271256,1257.4,1257.3,33.76079277]
[1672882352657,0.7271256,1257.4,1257.3,17.85369277]
[1672882354868,0.7271256,1257.4,1257.3,14.0646833]
[1672882355228,24.5858556,1257.4,1257.3,14.0646833]
[1672882355396,20.17073916,1257.4,1257.3,14.0646833]
[1672882355760,21.68773916,1257.4,1257.3,14.0646833]
[1672882355971,29.64064916,1257.4,1257.3,14.0646833]
[1672882357038,29.87064916,1257.4,1257.3,0.0646833]
[1672882357261,29.87064916,1257.4,1257.1,3.0]
[1672882357481,29.87064916,1257.4,1257.1,6.98914951]
[1672882357712,29.87064916,1257.4,1257.1,7.05383281]
[1672882358077,1.512,1257.3,1257.1,4.05383281]
[1672882358285,1.51,1257.2,1257.0,49.0646833]
[1672882358495,11.95481,1257.1,1257.0,53.05383281]
[1672882358704,21.48462,1257.1,1257.0,53.05383281]
[1672882359000,29.43943,1257.1,1257.0,53.05383281]
[1672882359212,33.329818,1257.1,1257.0,53.05383281]
[1672882359496,33.329818,1257.1,1257.0,39.05383281]
[1672882359710,21.375008,1257.1,1257.0,53.05383281]
[1672882359874,13.420198,1257.1,1257.0,53.05383281]
[1672882360086,11.911198,1257.1,1257.0,53.05383281]
[1672882361134,3.956388,1257.1,1257.0,53.05383281]
[1672882361354,3.890388,1257.1,1257.0,53.05383281]
[1672882361981,0.066,1257.2,1257.0,61.00927281]
[1672882362196,13.26506492,1257.3,1257.1,3.98914951]
[1672882363016,17.26506492,1257.3,1257.1,3.98914951]
[1672882363956,5.31116492,1257.3,1257.1,3.98914951]
[1672882364165,5.31116492,1257.3,1257.1,11.94371951]
[1672882364433,5.31116492,1257.3,1257.1,12.00840281]
[1672882364818,5.31116492,1257.3,1257.1,19.96066852]
[1672882365028,9.31116492,1257.3,1257.1,19.96066852]
[1672882365243,9.31116492,1257.3,1257.1,4.05128852]
[1672882365437,9.31116492,1257.3,1257.1,3.98660522]
[1672882366171,5.31116492,1257.3,1257.1,3.98660522]
[1672882368899,21.21843492,1257.3,1257.0,14.0646833]
[1672882369123,29.17250492,1257.3,1257.0,18.05383281]
[1672882369485,28.57560492,1257.3,1257.0,18.05383281]
[1672882369913,28.57560492,1257.3,1257.0,14.0646833]
[1672882370058,12.66781492,1257.3,1257.0,18.05383281]
[1672882371506,12.66781492,1257.3,1257.0,26.00916281]
[1672882373000,4.71426492,1257.3,1257.2,7.95418]
[1672882373216,3.13826492,1257.3,1257.2,0.0646833]
[1672882373427,14.56071916,1257.4,1257.1,19.96337281]
[1672882373780,14.56071916,1257.4,1257.1,12.00860281]
[1672882374160,19.46014107,1257.4,1257.1,12.00860281]
[1672882374340,14.56071916,1257.4,1257.1,12.00860281]
[1672882374485,14.56071916,1257.4,1257.1,4.05383281]
[1672882374486,27.41324107,1257.4,1257.1,4.05383281]
[1672882374854,27.41324107,1257.4,1257.1,3.98914951]
[1672882374855,25.89624107,1257.4,1257.1,3.98914951]
[1672882375224,20.99681916,1257.4,1257.1,3.98914951]
[1672882375806,25.89605107,1257.4,1257.1,3.98914951]
[1672882376795,17.94314107,1257.4,1257.2,3.98914951]
[1672882377004,17.11634107,1257.4,1257.2,3.98914951]
[1672882377221,25.06929107,1257.4,1257.2,3.98914951]
[1672882379463,33.02224107,1257.4,1257.2,3.98914951]
[1672882379703,25.06929107,1257.4,1257.2,3.98914951]
[1672882380541,33.02224107,1257.4,1257.2,3.98914951]
[1672882381114,40.97519107,1257.4,1257.2,3.98914951]
[1672882381978,4.89942191,1257.3,1257.2,3.98914951]
[1672882382202,15.9071,1257.3,1257.2,3.98914951]
[1672882382425,36.17771102,1257.3,1257.1,0.0646833]
[1672882382745,36.17771102,1257.3,1256.7,8.01695]
[1672882382746,23.86482,1257.1,1256.8,14.0]
[1672882382977,1.513,1256.9,1256.8,14.0646833]
[1672882383173,25.38124,1256.9,1256.8,14.0646833]
[1672882383327,28.136464,1256.9,1256.8,0.0646833]
[1672882383528,28.136464,1256.9,1256.6,14.0]
[1672882383529,28.366464,1256.9,1256.6,0.0646833]
[1672882383741,1.506,1256.8,1256.6,3.98914951]
[1672882384004,9.46281,1256.8,1256.6,3.98914951]
[1672882384230,9.52881,1256.8,1256.6,3.98914951]
[1672882384369,16.3484294,1256.8,1256.6,3.98914951]
[1672882384579,12.3484294,1256.8,1256.6,3.98914951]
[1672882385367,4.3916194,1256.8,1256.6,3.98914951]
[1672882385581,4.3256194,1256.8,1256.6,3.98914951]
[1672882385798,12.2823994,1256.8,1256.6,3.98914951]
[1672882385956,12.3483994,1256.8,1256.6,3.98914951]
[1672882387540,20.3051794,1256.8,1256.6,3.98914951]
[1672882388159,20.3051794,1256.8,1256.6,3.98676651]
[1672882390164,0.066,1256.8,1256.7,3.98914951]
[1672882390390,2.174,1257.0,1256.7,11.94648951]
[1672882390597,5.108,1257.0,1256.7,12.01117281]
[1672882390811,9.61745119,1257.0,1256.7,12.01117281]
[1672882391472,17.57306119,1257.0,1256.7,4.05383281]
[1672882391816,17.57306119,1257.0,1256.7,3.98914951]
[1672882391943,17.57306119,1257.0,1256.7,11.94630951]
[1672882392327,17.57306119,1257.0,1256.7,12.01099281]
[1672882393847,9.61745119,1257.0,1256.7,12.01099281]
[1672882393998,16.06205119,1257.0,1256.7,12.01099281]
[1672882395531,35.97325119,1257.0,1256.7,4.05383281]
[1672882395681,35.97325119,1257.0,1256.7,3.98914951]
[1672882398786,4.0,1256.9,1256.7,3.98914951]
[1672882398960,24.06159512,1256.9,1256.7,3.98914951]
[1672882399169,24.12759512,1256.9,1256.7,3.98914951]
[1672882400720,0.066,1256.9,1256.7,3.98914951]
[1672882400895,0.663,1257.0,1256.8,3.98914951]
[1672882401067,22.51619819,1257.1,1256.8,19.90239951]
[1672882401429,22.51619819,1257.1,1256.8,19.96708281]
[1672882401573,27.3177522,1257.1,1256.8,19.96708281]
[1672882402621,27.3177522,1257.1,1256.8,12.01037281]
[1672882402829,35.2726222,1257.1,1256.8,12.01037281]
[1672882403586,4.0,1257.0,1256.8,4.05383281]
[1672882403769,24.63415922,1257.0,1256.8,3.98914951]
[1672882403983,24.70015922,1257.0,1256.8,3.98914951]
[1672882405373,32.65603922,1257.0,1256.8,3.98914951]
[1672882411239,28.65603922,1257.0,1256.8,3.98657824]
[1672882412125,20.70015922,1257.0,1256.8,3.98657824]
[1672882412665,0.066,1257.0,1256.8,11.94325824]
[1672882412881,34.80422401,1257.1,1257.0,0.00390236]
[1672882412882,39.76964592,1257.1,1257.0,0.00390236]
[1672882413091,34.87022401,1257.1,1257.0,0.00390236]
[1672882413276,31.81477592,1257.1,1257.0,0.00390236]
[1672882413483,26.91535401,1257.1,1257.0,0.00390236]
[1672882413943,34.87016401,1257.1,1257.0,0.00390236]
[1672882414137,26.91535401,1257.1,1257.0,0.00390236]
[1672882415484,34.87016401,1257.1,1257.0,0.00390236]
[1672882418276,39.76958592,1257.1,1257.0,0.00390236]
[1672882418804,39.17258592,1257.1,1257.0,0.00390236]
[1672882419109,34.27316401,1257.1,1257.0,0.00390236]
[1672882419497,26.31835401,1257.1,1257.0,0.00390236]
[1672882420949,34.27316401,1257.1,1257.0,0.00390236]
[1672882421159,39.17258592,1257.1,1257.0,0.00390236]
[1672882421953,34.27316401,1257.1,1257.0,0.00390236]
[1672882422784,39.17258592,1257.1,1257.0,0.00390236]
[1672882423704,34.27316401,1257.1,1257.0,0.00390236]
[1672882424119,26.31835401,1257.1,1257.0,0.00390236]
[1672882424706,34.27316401,1257.1,1257.0,0.00390236]
[1672882426108,47.12739592,1257.1,1257.0,0.00390236]
[1672882427230,55.08220592,1257.1,1257.0,0.00390236]
[1672882430933,31.21777592,1257.1,1257.0,0.00390236]
[1672882431212,26.41622191,1257.1,1257.0,0.00390236]
[1672882431578,26.41622191,1257.1,1257.0,0.00025637]
[1672882435674,34.37103191,1257.1,1257.0,0.00025637]
[1672882438016,26.41622191,1257.1,1257.0,0.00025637]
[1672882439004,15.32252191,1257.1,1257.0,3.98940588]
[1672882439365,20.87504191,1257.1,1257.0,3.98940588]
[1672882439590,32.84795155,1257.1,1257.0,0.00025637]
[1672882439823,33.07795155,1257.1,1257.0,0.00025637]
[1672882440423,45.15045155,1257.1,1257.0,0.00025637]
[1672882441068,44.92045155,1257.1,1257.0,0.00025637]
[1672882441276,45.15045155,1257.1,1257.0,0.00025637]
[1672882442994,45.15045155,1257.1,1256.7,17.1166833]
[1672882443147,45.15045155,1257.1,1256.8,3.98914951]
[1672882447928,4.0,1257.0,1256.8,3.84214951]
[1672882448403,19.91125,1257.0,1256.8,3.84214951]
[1672882448558,19.97725,1257.0,1256.8,3.84214951]
[1672882449251,15.97725,1257.0,1256.8,3.84214951]
[1672882455676,28.44825816,1257.0,1256.7,0.0646833]
[1672882455839,6.80542191,1256.9,1256.6,53.6696833]
[1672882456211,23.87013,1256.8,1256.6,57.65883281]
[1672882456407,23.93613,1256.8,1256.6,53.05383281]
[1672882456576,27.93613,1256.8,1256.6,53.05383281]
[1672882456783,1.902,1256.7,1256.6,35.0646833]
[1672882457121,25.77402,1256.7,1256.6,35.0646833]
[1672882457333,0.066,1256.7,1256.6,35.0646833]
[1672882457527,16.3065,1256.8,1256.6,8.0226633]
[1672882457731,16.3065,1256.8,1256.6,0.0646833]
[1672882457946,21.45148919,1256.8,1256.5,22.05055173]
[1672882458133,15.54548919,1256.8,1256.5,26.03970124]
[1672882458341,10.4005,1256.8,1256.5,33.99831124]
[1672882460674,18.35722,1256.8,1256.5,26.03970124]
[1672882463507,10.4005,1256.8,1256.5,33.99831124]
[1672882464652,10.4005,1256.8,1256.5,26.03970124]
[1672882464863,18.35739,1256.8,1256.5,18.08146124]
[1672882465651,26.31428,1256.8,1256.5,18.08146124]
[1672882466028,32.16069,1256.8,1256.5,18.08146124]
[1672882466372,40.11758,1256.8,1256.5,18.08146124]
[1672882467926,40.52157305,1256.8,1256.5,18.08146124]
[1672882468594,40.52157305,1256.8,1256.5,53.08146124]
[1672882470374,4.0,1256.7,1256.5,53.07859781]
[1672882470604,40.52157305,1256.8,1256.5,53.07859781]
[1672882471542,32.56468305,1256.8,1256.5,53.07859781]
[1672882478455,40.52157305,1256.8,1256.5,53.07859781]
[1672882485856,42.42757305,1256.8,1256.5,53.07859781]
[1672882487933,26.51379305,1256.8,1256.5,53.07859781]
[1672882488144,34.47068305,1256.8,1256.5,53.07859781]
[1672882488457,42.42757305,1256.8,1256.5,53.07859781]
[1672882491352,42.42757305,1256.8,1256.5,53.07625284]
[1672882494064,42.42757305,1256.8,1256.5,53.07425284]
[1672882494281,42.42757305,1256.8,1256.5,53.07625284]
[1672882495241,47.32699496,1256.8,1256.5,53.07625284]
[1672882495455,42.42757305,1256.8,1256.5,53.07625284]
[1672882496357,36.58116305,1256.8,1256.5,58.38692782]
[1672882497674,36.58116305,1256.8,1256.5,66.34552782]
[1672882497675,12.71049305,1256.8,1256.5,66.34552782]
[1672882500182,20.66728305,1256.8,1256.5,66.34552782]
[1672882504982,28.62407305,1256.8,1256.5,58.38692782]
[1672882505371,35.00087655,1256.8,1256.5,53.07625284]
[1672882506555,27.04408655,1256.8,1256.5,53.07625284]
[1672882508093,10.80449305,1256.8,1256.6,3.98914951]
[1672882508306,10.4005,1256.8,1256.6,11.94698951]
[1672882508496,10.4005,1256.8,1256.6,12.01167281]
[1672882509565,10.4005,1256.8,1256.6,19.96965281]
[1672882509949,10.4005,1256.8,1256.6,12.01167281]
[1672882510369,10.4005,1256.8,1256.6,4.05383281]
[1672882510619,18.35729,1256.8,1256.6,3.98914951]
[1672882511689,26.31408,1256.8,1256.6,3.98914951]
[1672882512064,26.31408,1256.8,1256.6,3.98634013]
[1672882512724,18.35729,1256.8,1256.6,3.98634013]
[1672882514843,18.75281794,1256.8,1256.6,3.98634013]
[1672882516523,22.73705573,1256.8,1256.6,3.98634013]
[1672882516739,41.13565573,1256.8,1256.5,35.08710333]
[1672882516882,19.51296,1256.6,1256.5,35.08710333]
[1672882517088,19.57896,1256.6,1256.5,35.08710333]
[1672882517302,22.355629,1256.6,1256.5,35.08710333]
[1672882517514,30.313609,1256.6,1256.5,35.08710333]
[1672882518100,30.313609,1256.6,1256.5,0.08710333]
[1672882518101,32.433609,1256.6,1256.5,0.08710333]
[1672882518317,32.433609,1256.6,1256.5,0.02242003]
[1672882518318,54.87300574,1256.6,1256.5,0.02242003]
[1672882519285,54.86948137,1256.6,1256.5,0.02242003]
[1672882520410,36.574849,1256.6,1256.5,0.02242003]
[1672882523259,44.532829,1256.6,1256.5,0.02242003]
[1672882527499,52.490809,1256.6,1256.5,0.02242003]
[1672882533164,44.532829,1256.6,1256.5,0.02242003]
[1672882533355,28.616869,1256.6,1256.5,0.02242003]
[1672882533947,44.532829,1256.6,1256.5,0.02242003]
[1672882534185,52.490809,1256.6,1256.5,0.02242003]
[1672882536055,28.616869,1256.6,1256.5,0.02242003]
[1672882536246,36.574849,1256.6,1256.5,0.02242003]
[1672882536473,52.490809,1256.6,1256.5,0.02242003]
[1672882536677,51.893609,1256.6,1256.5,0.02242003]
[1672882542243,51.893609,1256.6,1256.5,0.01976494]
[1672882543971,28.019669,1256.6,1256.5,0.01976494]
[1672882544178,25.243,1256.6,1256.5,0.01976494]
[1672882544400,23.353,1256.6,1256.5,0.01976494]
[1672882548585,21.658,1256.6,1256.5,0.01976494]
[1672882550275,0.066,1256.6,1256.5,1.71476494]
[1672882550424,12.40502794,1256.8,1256.5,25.59059494]
[1672882550635,12.47102794,1256.8,1256.5,17.69666824]
[1672882550907,20.42777794,1256.8,1256.5,12.30664376]
[1672882551095,31.44637794,1256.8,1256.5,12.30664376]
[1672882551315,30.84927794,1256.8,1256.5,12.30664376]
[1672882551536,38.80602794,1256.8,1256.5,4.34803376]
[1672882551854,38.80602794,1256.8,1256.5,4.28335046]
[1672882552954,46.76269794,1256.8,1256.5,0.01976494]
[1672882553377,4.0,1256.7,1256.5,0.01976494]
[1672882553581,7.95798,1256.6,1256.5,0.01976494]
[1672882553784,8.02398,1256.6,1256.5,0.01976494]
[1672882554347,15.98196,1256.6,1256.5,0.01976494]
[1672882554559,23.93994,1256.6,1256.5,0.01976494]
[1672882555174,27.529698,1256.6,1256.5,0.01976494]
[1672882562616,27.529698,1256.6,1256.5,0.01744037]
[1672882564243,23.93994,1256.6,1256.5,0.01744037]
[1672882573382,15.98196,1256.6,1256.5,0.01744037]
[1672882580334,0.066,1256.6,1256.5,0.01744037]
[1672882580548,27.93919,1256.7,1256.5,0.01744037]
[1672882582559,12.02364,1256.7,1256.5,0.01744037]
[1672882582868,22.18601789,1256.7,1256.5,0.01744037]
[1672882583081,4.0,1256.6,1256.5,0.01744037]
[1672882583268,22.18601789,1256.7,1256.5,0.01744037]
[1672882583477,4.0,1256.6,1256.5,0.01744037]
[1672882583648,22.18601789,1256.7,1256.5,0.0144647]
[1672882583859,4.0,1256.6,1256.5,0.0144647]
[1672882584485,22.18601789,1256.7,1256.5,0.0144647]
[1672882585017,4.0,1256.6,1256.5,0.0144647]
[1672882585483,22.18601789,1256.7,1256.5,0.0144647]
[1672882585693,4.0,1256.6,1256.5,0.0144647]
[1672882585856,22.18601789,1256.7,1256.5,0.0144647]
[1672882586067,4.0,1256.6,1256.5,0.0144647]
[1672882587017,22.18601789,1256.7,1256.5,0.0144647]
[1672882587272,4.0,1256.6,1256.5,0.0144647]
[1672882587695,22.18601789,1256.7,1256.5,0.0144647]
[1672882587914,4.0,1256.6,1256.5,0.0144647]
[1672882588310,17.28659598,1256.7,1256.5,0.0144647]
[1672882588747,4.0,1256.6,1256.5,0.0144647]
[1672882588956,17.28659598,1256.7,1256.5,0.0144647]
[1672882589339,4.0,1256.6,1256.5,0.0144647]
[1672882589992,17.28659598,1256.7,1256.5,0.0144647]
[1672882590428,4.0,1256.6,1256.5,0.0144647]
[1672882590694,25.24437598,1256.7,1256.5,0.0144647]
[1672882590879,4.0,1256.6,1256.5,0.0144647]
[1672882591199,25.24437598,1256.7,1256.5,0.0144647]
[1672882591419,17.28659598,1256.7,1256.5,0.0144647]
[1672882591588,4.0,1256.6,1256.5,0.0144647]
[1672882591807,17.28659598,1256.7,1256.5,0.0144647]
[1672882591988,4.0,1256.6,1256.5,0.0144647]
[1672882592197,17.28659598,1256.7,1256.5,0.0144647]
[1672882592424,17.28657598,1256.7,1256.5,0.0144647]
[1672882592638,4.0,1256.6,1256.5,0.0144647]
[1672882592892,22.18599789,1256.7,1256.5,0.0144647]
[1672882593358,4.0,1256.6,1256.5,0.0144647]
[1672882593726,30.14361789,1256.7,1256.5,0.0144647]
[1672882593947,4.0,1256.6,1256.5,0.0144647]
[1672882594093,30.14361789,1256.7,1256.5,0.0144647]